Cogmind - Beta 14 *** ADVENTURER MODE // 2024.10.10 @ 09:08:50 Player: Jefffff Result: Destroyed by X-77 Beamer with Gatling Laser Performance ------------- Evolutions (6) 3000 Regions Visited (12) 2400 Robots Destroyed (241) 1205 Value Destroyed (10242) 10242 Prototype IDs (21) 420 Alien Tech Used (0) 0 Bonus (1881) 1881 TOTAL SCORE: 19148 Bonus ------- High Alert Combat Kills 539 Follower Combat Kills 945 Entered Garrisons 200 Used RIF Installer 500 Friendly Fire -303 Cogmind --------- Core Integrity 0/1150 Matter 111/300 Energy 66/395 System Corruption 1% Temperature Cool (79) Movement Walking (190) Ox1 Location -4/Factory Parts ------- > --- POWER (2) -------- Antimatter Reactor Light Antimatter Reactor > --- PROPULSION (7) --- Enhanced Armored Leg Enhanced Armored Leg Enhanced Armored Leg Myomer Leg Myomer Leg Myomer Leg > --- UTILITY (8) ------ Advanced Cryofiber Web Advanced Cooling System Huge Storage Unit Enhanced Optical Array Graphene Brace Improved Thermal Shield > --- WEAPON (2) ------- Matter Neutralizer Power Maul > --- INVENTORY (25) --- Light Antimatter Reactor Flexi-carbon Leg Myomer Leg Myomer Leg Energy Well (350) Improved Signal Interpreter Advanced Targeting Computer Transmission Jammer Advanced Force Field Plasma Rifle Plasma Rifle HERF Cannon Matter Neutralizer KE Penetrator Hardcell Cannon Remote Datajack Plasma Cutter Peak State ------------ > --- POWER ------------ Light Antimatter Reactor Reinforced Antimatter Reactor > --- PROPULSION ------- Enhanced Armored Leg Enhanced Armored Leg Enhanced Armored Leg Enhanced Armored Leg Myomer Leg Myomer Leg Myomer Leg > --- UTILITY ---------- Advanced Cryofiber Web Advanced Cooling System Huge Storage Unit Advanced Transmission Jammer Improved Medium Armor Plating Graphene Brace Improved Thermal Shield Improved System Shield > --- WEAPON ----------- Matter Neutralizer Hardcell Cannon > --- INVENTORY -------- Antimatter Reactor Light Antimatter Reactor Light Antimatter Reactor Flexi-carbon Leg Myomer Leg Myomer Leg Myomer Leg Myomer Leg Energy Well Enhanced Optical Array Improved Signal Interpreter Advanced Targeting Computer Transmission Jammer Advanced Force Field Plasma Rifle Plasma Rifle HERF Cannon Matter Neutralizer Matter Neutralizer KE Penetrator Remote Datajack Plasma Cutter Power Maul [Rating: 132] Favorites ----------- Power Reinforced Deuterium Engine Engine Reinforced Deuterium Engine Power Core Fission Core Reactor Reinforced Antimatter Reactor Propulsion Flexi-carbon Leg Treads Armored Treads Leg Flexi-carbon Leg Wheel Armored Huge Wheel Utility Huge Storage Unit Device Improved Cooling System Storage Huge Storage Unit Processor Experimental Target Analyzer Hackware System Shield Protection Improved Medium Armor Plating Weapon Heavy Plasma Cannon Energy Gun Gatling Laser Energy Cannon Heavy Plasma Cannon Ballistic Gun Heavy Assault Rifle Ballistic Cannon Gauss Cannon Launcher Heavy Rocket Launcher Special Weapon Plasma Cutter Impact Weapon Maul Special Melee Weapon Datajack Build | -11 -10 -9 -9 -8 -7 -6 -6 -6 -5 -4 -4 -4 ------- Run | Yrd Mat Mat Min Mat Fac Fac Low Low Fac Fac Gar Fac Slots Evolved 12 | . . 2 . 2 2 2 . . 2 2 . . Power 1 | . . . . . . 1 . . . . . . Propulsion 5 | . . . . . 2 1 . . 1 1 . . Utility 6 | . . 2 . 2 . . . . 1 1 . . Weapon . | . . . . . . . . . . . . . Parts Attached 315 | 5 8 28 9 25 35 94 9 . 6 14 48 34 Power 50 | 1 . 5 2 2 3 23 1 . 2 2 4 5 Engine 25 | 1 . 5 2 2 2 9 1 . . . 2 1 Core 18 | . . . . . 1 11 . . 2 2 1 1 Reactor 7 | . . . . . . 3 . . . . 1 3 Propulsion 105 | 2 2 5 3 4 11 27 2 . 2 6 22 19 Treads 21 | . . . . 4 9 2 1 . . 2 3 . Leg 68 | 2 2 5 2 . . 22 1 . 1 . 14 19 Wheel 16 | . . . 1 . 2 3 . . 1 4 5 . Hover . | . . . . . . . . . . . . . Flight . | . . . . . . . . . . . . . Utility 98 | . 4 8 3 9 17 29 3 . 2 4 12 7 Device 44 | . . 3 . 7 4 15 3 . 1 2 6 3 Storage 6 | . 2 1 . . 2 1 . . . . . . Processor 6 | . . 1 . . 1 2 . . . 1 . 1 Hackware 3 | . . . . . 1 . . . . . 1 1 Protection 39 | . 2 3 3 2 9 11 . . 1 1 5 2 Artifact . | . . . . . . . . . . . . . Weapon 62 | 2 2 10 1 10 4 15 3 . . 2 10 3 Energy Gun 16 | . 1 2 . 2 2 3 1 . . . 5 . Energy Cannon 11 | . . 1 . . . 6 1 . . 1 1 1 Ballistic Gun 15 | 2 1 4 1 4 . 3 . . . . . . Ballistic Cannon 11 | . . 1 . . 2 3 . . . 1 3 1 Launcher 1 | . . . . . . . 1 . . . . . Special Weapon 2 | . . 1 . . . . . . . . 1 . Impact Weapon 4 | . . 1 . 2 . . . . . . . 1 Slashing Weapon . | . . . . . . . . . . . . . Piercing Weapon . | . . . . . . . . . . . . . Special Melee Weapon 2 | . . . . 2 . . . . . . . . Unidentified Prototypes 4 | . . . . . . 3 . . . . . 1 Corrupted Parts 2 | . . . . . . 1 1 . . . . . System Corruption 5 | . . . . . . 2 3 . . . . . Parts Lost 93 | . . 4 5 3 . 48 6 . . 2 14 11 Power 16 | . . . 1 . . 11 1 . . . 1 2 Propulsion 33 | . . 2 2 . . 17 3 . . 1 5 3 Utility 32 | . . 2 1 2 . 14 . . . 1 7 5 Weapon 12 | . . . 1 1 . 6 2 . . . 1 1 Highest Loss Streak 13 | . . 4 3 1 . 13 6 . . 1 7 11 To Critical Strikes 1 | . . . . . . 1 . . . . . . Average Slot Usage (%) 94 | . 96 98 99 99 98 95 74 80 89 90 92 99 Engine 7 | . 14 10 10 9 6 5 6 6 5 2 3 3 Core 1 | . . . . . . 4 . . 5 7 2 . Treads 8 | . . . . 8 27 1 6 13 11 8 5 . Leg 14 | . 28 21 18 . . 25 7 6 6 7 17 35 Wheel 2 | . . . 3 8 1 2 . . 4 11 6 . Device 14 | . . 10 11 26 14 8 20 20 23 23 18 21 Storage 7 | . 12 11 11 9 7 6 6 6 5 5 5 5 Processor 6 | . . 8 . . 5 12 6 6 5 8 7 1 Hackware 1 | . . . . . 1 2 . . . . 1 7 Protection 11 | . 11 13 21 18 14 7 6 6 5 3 7 4 Energy Gun 3 | . 6 7 . . 6 1 . . . . 3 3 Energy Cannon 2 | . . 1 . . . 3 6 6 5 5 2 5 Ballistic Gun 4 | . 21 11 15 12 1 . . . . . . . Ballistic Cannon 3 | . . 1 5 . 5 6 . . . 3 3 1 Peak Build Rating 132 | 5 12 19 19 36 56 90 75 68 89 97 122 132 Average Rating 58 | 3 9 17 16 30 49 76 64 68 84 91 107 122 On Entrance 49 | . 5 12 16 17 36 56 69 68 68 84 88 122 Naked Turns . | . . . . . . . . . . . . . Heaviest Build 158 | 7 51 104 102 102 123 134 121 118 126 130 158 151 Greatest Support 160 | 20 26 26 23 45 90 92 75 20 28 70 150 160 Greatest Overweight (x) 10 | 1 2 4 8 8 4 10 5 5 6 4 5 1 Average Overweight (x) 2 | . 1 3 6 7 1 1 4 5 4 2 2 . Largest Inventory Capacity 25 | 5 20 25 25 25 25 25 25 25 25 25 25 25 Average Capacity 24 | 5 18 24 25 25 25 25 25 25 25 25 25 25 Most Carried 25 | 3 20 25 25 25 25 25 25 25 25 25 25 25 Average Carried 23 | 2 14 23 23 24 24 23 23 24 22 23 24 24 Final Capacity 25 | 5 20 25 25 25 25 25 25 25 25 25 25 25 Final Carried 25 | 3 20 25 25 25 25 24 24 25 16 25 25 17 Class Distribution -------------------- 61% | Scavenger-Mutant 33% | Mutant 5% | Hacker-Mutant Dominant Class ---------------- Mutant | -10/Materials Scavenger-Mutant | -9/Materials Scavenger-Mutant | -9/Mines Scavenger-Mutant | -8/Materials Mutant | -7/Factory Scavenger-Mutant | -6/Factory Scavenger-Mutant | -6/Lower Caves Scavenger-Mutant | -6/Lower Caves Scavenger-Mutant | -5/Factory Scavenger-Mutant | -4/Factory Scavenger-Mutant | -4/Garrison Scavenger-Mutant | -4/Factory Resources | -11 -10 -9 -9 -8 -7 -6 -6 -6 -5 -4 -4 -4 ----------- Run | Yrd Mat Mat Min Mat Fac Fac Low Low Fac Fac Gar Fac Matter Collected 7845 | 242 284 658 451 664 909 2401 217 34 . 323 1364 298 Remotely . | . . . . . . . . . . . . . Salvage Created 10182 | . 457 1404 235 1019 1799 2916 364 . . 468 1194 326 Parts 484 | . 26 86 6 69 87 140 14 . . 17 28 11 Haulers Intercepted 12 | . 2 3 . 2 2 1 1 . . . . 1 Recyclers Shooed 3 | . 1 1 1 . . . . . . . . . Parts Field Recycled . | . . . . . . . . . . . . . Retrieved Matter . | . . . . . . . . . . . . . Parts Self-Destructed 16 | . . . . . . . 16 . . . . . Prevented 1 | . . . . . . . 1 . . . . . Kills | -11 -10 -9 -9 -8 -7 -6 -6 -6 -5 -4 -4 -4 ------- Run | Yrd Mat Mat Min Mat Fac Fac Low Low Fac Fac Gar Fac Combat Hostiles Destroyed 192 | . 7 26 10 24 34 53 5 . . 6 23 4 Melee 3 | . . . . 3 . . . . . . . . Guns 83 | . 7 24 4 18 16 11 1 . . . 2 . Cannons 95 | . . 2 6 . 18 40 2 . . 6 17 4 AOE 1 | . . . . . . . 1 . . . . . Classes Destroyed 20 | . 5 4 2 1 3 5 . . . . . . Worker 9 | . 1 . . 3 4 1 . . . . . . Builder 8 | . . 1 . 1 3 1 . . . 1 . 1 Hauler 12 | . 2 3 . 2 2 1 1 . . . . 1 Recycler 7 | . . 3 . . 2 1 . . . 1 . . Mechanic 3 | . . . . . . 3 . . . . . . Operator 1 | . . . . . 1 . . . . . . . Watcher 19 | . 3 4 . 3 4 5 . . . . . . Swarmer 32 | . 3 10 . 11 . 3 . . . . 5 . Grunt 76 | . 4 8 . 10 15 24 4 . . . 11 . Brawler 3 | . . 1 . . 1 . . . . . . 1 Duelist 1 | . . . . . 1 . . . . . . . Protector 1 | . . . . . . 1 . . . . . . Sentry 29 | . . 7 . 2 6 7 . . . 4 3 . Demolisher 1 | . . . 1 . . . . . . . . . Specialist 3 | . . . . . . 1 . . . . 1 1 Hunter 12 | . . . . 1 3 4 . . . . 2 2 Programmer 20 | . . . . . 8 9 1 . . 2 . . Heavy 3 | . . . . . . 3 . . . . . . Behemoth 2 | . . . . . . 1 . . . . 1 . Assembled 9 | . . . 9 . . . . . . . . . Best Kill Streak 10 | . 3 6 4 4 5 10 4 . . 4 6 2 Combat Bots Only 9 | . 3 5 4 4 4 9 4 . . 2 6 1 Max Kills in Single Turn 2 | . 1 2 1 2 2 2 1 . . 1 1 1 Gunslinging 1 | . . 1 . 1 . . . . . . . . Exploded 1 | . . . . . . . 1 . . . . . Melee 1 | . . . . 1 . . . . . . . . Uniques/NPCs Destroyed . | . . . . . . . . . . . . . Combat | -11 -10 -9 -9 -8 -7 -6 -6 -6 -5 -4 -4 -4 -------- Run | Yrd Mat Mat Min Mat Fac Fac Low Low Fac Fac Gar Fac Hostile Shots Fired 2207 | . 47 179 67 100 309 798 86 . . 42 285 294 Missed 712 | . 21 49 15 25 137 278 22 . . 14 95 56 Damage Taken 19248 | . 222 1121 898 869 1680 6961 947 . . 480 2771 3299 Core 2433 | . 26 133 78 224 105 660 56 . . 36 237 878 Absorbed by Shields 23 | . . . . . . . . . . . 23 . Redirected to Shielding 271 | . . 30 . 66 3 47 22 . . . 103 . Ignored by Resistances 6871 | . 69 343 245 250 505 2018 261 . . 162 1146 1872 Regen/Repaired (Parts) 650 | . . 123 . 291 236 . . . . . . . Core Remaining (%) 70 | 100 89 . 47 59 85 . . 15 100 . . . Volleys Fired 887 | . 52 98 35 67 127 256 26 . . 25 171 30 Largest 2 | . 2 2 2 2 2 2 2 . . 2 2 2 Hottest 186 | . 73 100 58 94 128 156 170 . . 151 186 186 Shots Fired 1495 | . 104 187 70 112 223 410 46 . . 47 237 59 Gun 729 | . 104 159 49 112 127 128 8 . . . 32 10 Cannon 697 | . . 27 21 . 96 282 34 . . 47 141 49 Launcher 4 | . . . . . . . 4 . . . . . Special 65 | . . 1 . . . . . . . . 64 . Kinetic 880 | . 92 114 70 110 119 220 . . . 22 113 20 Thermal 555 | . 12 73 . 2 104 142 42 . . 25 116 39 Explosive 4 | . . . . . . . 4 . . . . . Electromagnetic 56 | . . . . . . 48 . . . . 8 . Robot Hit Streak 47 | . 15 26 8 12 23 25 16 . . 10 47 19 Robot Miss Streak 5 | . 5 2 2 2 4 4 2 . . 1 2 2 Penetration Max 1 | . . . . 1 1 1 . . . . 1 . Secondary Targets 12 | . . 8 . 3 1 . . . . . . . Max Gunslinging Chain 1 | . . 1 . 1 1 . . . . . . . Shots Hit Robots 1154 | . 69 149 50 95 176 309 35 . . 34 191 46 Core Hits 480 | . 25 49 27 44 104 118 13 . . 15 69 16 Critical Kills 4 | . . . . . . 1 . . . . 3 . Critical Parts Destroyed 10 | . 1 1 . 6 1 1 . . . . . . Critical Strikes 105 | . 3 5 2 6 10 29 1 . . 2 44 3 Burn 17 | . 2 3 . . . 3 1 . . . 7 1 Meltdown 4 | . . . . . . 1 . . . . 3 . Destroy 7 | . 1 1 . 3 1 1 . . . . . . Blast 60 | . . 1 2 . 9 20 . . . 2 24 2 Corrupt 4 | . . . . . . 4 . . . . . . Smash 3 | . . . . 3 . . . . . . . . Sever 10 | . . . . . . . . . . . 10 . Melee Attacks 27 | . . 4 . 16 6 . . . . . . 1 Impact 25 | . . 4 . 14 6 . . . . . . 1 Slashing . | . . . . . . . . . . . . . Piercing . | . . . . . . . . . . . . . Sneak Attacks 3 | . . . . 3 . . . . . . . . Combat Hostiles . | . . . . . . . . . . . . . Follow-up Attacks . | . . . . . . . . . . . . . Damage Inflicted 29266 | . 933 2345 834 2020 4667 9628 1057 . . 1214 4702 1866 Guns 10369 | . 933 1786 507 1489 2571 2363 112 . . . 439 169 Cannons 16652 | . . 438 327 . 1861 7168 771 . . 1214 3528 1345 Explosions 862 | . . . . 59 229 97 174 . . . . 303 Melee 642 | . . 121 . 472 . . . . . . . 49 Ramming 6 | . . . . . 6 . . . . . . . Kinetic 16444 | . 821 1384 834 1451 2300 5585 . . . 568 2940 561 Thermal 11126 | . 112 840 . 97 2361 3246 883 . . 646 1685 1256 Explosive 174 | . . . . . . . 174 . . . . . Electromagnetic 874 | . . . . . . 797 . . . . 77 . Impact 642 | . . 121 . 472 . . . . . . . 49 Slashing . | . . . . . . . . . . . . . Piercing . | . . . . . . . . . . . . . Highest Corruption 10 | . . 8 8 . 1 7 10 10 . 1 1 1 Average Corruption 3 | . . 7 8 . 1 4 7 10 . 1 1 1 Corruption Purged 1 | . . . . . 1 . . . . . . . Corruption Blocked . | . . . . . . . . . . . . . Effects 225 | . . 14 29 . 24 69 52 8 . 2 22 5 Message Errors 52 | . . 2 7 . 7 14 11 2 . . 9 . Matter Fused 58 | . . 4 6 . 4 17 15 2 . 2 5 3 Heat Flow Errors 25 | . . 2 4 . 2 8 3 1 . . 3 2 Energy Discharges 38 | . . 3 4 . 6 15 7 1 . . 2 . Parts Rejected 4 | . . . 1 . . 2 . . . . 1 . Parts Fused 4 | . . 1 1 . 1 . 1 . . . . . Data Loss (minor) 20 | . . 1 3 . 1 5 7 1 . . 2 . Data Loss (major) 9 | . . . 1 . 1 3 3 1 . . . . Misfires 6 | . . 1 1 . 1 . 3 . . . . . Alerts 5 | . . . . . 1 2 2 . . . . . Weapon Failures 4 | . . . 1 . . 3 . . . . . . Overload Shots . | . . . . . . . . . . . . . Overflow Damage 546 | . . . 16 163 97 176 30 . . 16 37 11 Projectiles 336 | . . . 16 . 50 176 30 . . 16 37 11 Explosions 64 | . . . . 17 47 . . . . . . . Melee 146 | . . . . 146 . . . . . . . . Knockbacks 65 | . . . 4 1 10 16 . . . . 26 8 Impact 1 | . . . . 1 . . . . . . . . Kinetic 59 | . . . 4 . 10 15 . . . . 24 6 Secondary 5 | . . . . . . 1 . . . . 2 2 Self-Inflicted Damage 276 | . . . . 80 48 . 21 . . . . 127 Shots 5 | . . . . 1 1 . 1 . . . . 2 Rammed . | . . . . . . . . . . . . . Targets Rammed 1 | . . . . . 1 . . . . . . . Kicked . | . . . . . . . . . . . . . Crushed 1 | . . . . . 1 . . . . . . . Highest Temperature 805 | . 69 408 268 . 200 519 118 70 . 4 230 805 Average Temperature 100 | . 26 71 80 . 26 126 27 43 . 3 35 326 Received Heat Transfer 6606 | . 147 468 140 432 642 2200 588 . . 81 663 1245 Effects 33 | . . 4 . . . 14 . . . . . 15 Shutdowns 9 | . . 1 . . . 5 . . . . . 3 Energy Bleed 1 | . . . . . . . . . . . . 1 Interference 10 | . . 3 . . . 5 . . . . . 2 Matter Decay 2 | . . . . . . 1 . . . . . 1 Short Circuit 3 | . . . . . . 1 . . . . . 2 Damage (minor) 2 | . . . . . . 2 . . . . . . Damage (major) 3 | . . . . . . . . . . . . 3 Damage (core) 3 | . . . . . . . . . . . . 3 Siege Activations . | . . . . . . . . . . . . . Robots Corrupted 4 | . . . . 3 . 1 . . . . . . Combat Hostiles 4 | . . . . 3 . 1 . . . . . . Parts Fried 8 | . . . . 5 . 3 . . . . . . Impact Corruptions 5 | . . . . 5 . . . . . . . . Robots Melted 7 | . . . . . . 2 1 . . . 4 . Combat Hostiles 6 | . . . . . . 1 1 . . . 4 . Parts Melted 41 | . 2 2 . . 7 9 5 . . 2 13 1 Heat Transferred 21498 | . 481 2294 . 174 4632 5499 1596 . . 950 4475 1397 Parts Sabotaged . | . . . . . . . . . . . . . Parts Stolen 1 | . . . . . . . 1 . . . . . Parts Stripped . | . . . . . . . . . . . . . Power Chain Reactions 1 | . . . . . . 1 . . . . . . Alert | -11 -10 -9 -9 -8 -7 -6 -6 -6 -5 -4 -4 -4 ------- Run | Yrd Mat Mat Min Mat Fac Fac Low Low Fac Fac Gar Fac Peak Influence 1582 | . 176 256 32 233 367 291 . . 23 147 1582 1143 Initial 719 | . . . 12 3 12 48 . . 11 . 90 719 Average 180 | . 26 86 8 101 103 87 . . 5 32 641 923 Maximum Alert Level 4 | . . 1 . 1 1 1 . . . . 4 4 Low Security (%) 79 | 100 100 93 100 91 84 94 . . 100 100 20 . Level 1 7 | . . 6 . 8 15 5 . . . . 10 . Level 2 3 | . . . . . . . . . . . 25 . Level 3 7 | . . . . . . . . . . . 30 99 Level 4 1 | . . . . . . . . . . . 12 . Level 5 . | . . . . . . . . . . . . . High Security . | . . . . . . . . . . . . . Max Security . | . . . . . . . . . . . . . Squads Dispatched 48 | . . 2 . 5 13 20 . . . 2 . 6 Investigation 6 | . . . . . 3 2 . . . 1 . . Extermination 16 | . . . . . 6 8 . . . 1 . 1 Reinforcement 16 | . . 2 . 1 3 7 . . . . . 3 Assault 2 | . . . . . . . . . . . . 2 Garrison 8 | . . . . 4 1 3 . . . . . . Intercept . | . . . . . . . . . . . . . Searches Triggered . | . . . . . . . . . . . . . Construction Impeded 3 | . . . . . 1 1 . . . . . 1 Haulers Reinforced 2 | . . . . . 1 1 . . . . . . Active Scanning Responses . | . . . . . . . . . . . . . Cargo Convoy Interrupts 1 | . . . . . . 1 . . . . . . Stealth | -11 -10 -9 -9 -8 -7 -6 -6 -6 -5 -4 -4 -4 --------- Run | Yrd Mat Mat Min Mat Fac Fac Low Low Fac Fac Gar Fac Distress Signals 9 | . . 2 . 2 2 2 . . . . . 1 Communications Jammed 1 | . . . . . . . . . . . . 1 Distress Signals 1 | . . . . . . . . . . . . 1 Times Spotted 300 | . 16 33 20 32 41 85 7 . . 6 39 21 Peak Tracking Total 9 | . 3 3 9 4 4 7 5 . . 2 8 9 Tactical Retreats 13 | . . 1 . 3 . 3 1 . . . 4 1 Traps | -11 -10 -9 -9 -8 -7 -6 -6 -6 -5 -4 -4 -4 ------- Run | Yrd Mat Mat Min Mat Fac Fac Low Low Fac Fac Gar Fac Traps Triggered 20 | . . 2 . . 8 3 . . . . 7 . Indirectly . | . . . . . . . . . . . . . Trap Hack Attempts 30 | . . . . 30 . . . . . . . . Triggered . | . . . . . . . . . . . . . Disarmed 1 | . . . . 1 . . . . . . . . Reprogrammed 2 | . . . . 2 . . . . . . . . Reused 1 | . . . . 1 . . . . . . . . Traps Extracted . | . . . . . . . . . . . . . Installed . | . . . . . . . . . . . . . Triggered 2 | . . . . 1 . . 1 . . . . . Machines | -11 -10 -9 -9 -8 -7 -6 -6 -6 -5 -4 -4 -4 ---------- Run | Yrd Mat Mat Min Mat Fac Fac Low Low Fac Fac Gar Fac Machines Disabled 35 | . . 1 . 1 11 9 . . . . 6 7 Max in Single Turn 6 | . . 1 . 1 6 4 . . . . 1 4 Garrison Access 3 | . . . . . 1 1 . . 1 . . . Garrison Relay 3 | . . . . . . . . . . . 3 . Machines Repaired . | . . . . . . . . . . . . . Machines Dismantled . | . . . . . . . . . . . . . Machines Sabotaged . | . . . . . . . . . . . . . Overloaded Fab Kills . | . . . . . . . . . . . . . Hacking | -11 -10 -9 -9 -8 -7 -6 -6 -6 -5 -4 -4 -4 --------- Run | Yrd Mat Mat Min Mat Fac Fac Low Low Fac Fac Gar Fac Machines Accessed 56 | . 7 6 . 5 14 9 . . 4 7 2 2 Terminals 37 | . 7 4 . 3 7 6 . . 2 5 2 1 Fabricators 5 | . . . . . 3 1 . . . 1 . . Repair Stations 7 | . . 2 . 1 3 . . . . . . 1 Recycling Units . | . . . . . . . . . . . . . Scanalyzers 3 | . . . . 1 . 1 . . 1 . . . Garrison Access 4 | . . . . . 1 1 . . 1 1 . . Total Hacks 173 | . 22 21 . 19 33 35 . . 19 18 2 4 Successful 100 | . 15 12 . 15 16 17 . . 15 9 . 1 Failed 73 | . 7 9 . 4 17 18 . . 4 9 2 3 Catastrophic 9 | . . 1 . . 1 4 . . . 1 2 . Database Lockouts . | . . . . . . . . . . . . . Manual 101 | . 16 17 . 5 15 24 . . 6 14 2 2 Terminals 125 | . 22 17 . 9 18 30 . . 9 16 2 2 Fabricators 6 | . . . . . 4 1 . . . 1 . . Repair Stations 22 | . . 4 . 8 8 . . . . . . 2 Recycling Units . | . . . . . . . . . . . . . Scanalyzers 13 | . . . . 2 . 2 . . 9 . . . Garrison Access 7 | . . . . . 3 2 . . 1 1 . . Terminal Hacks 26 | . 7 1 . 2 2 8 . . 3 3 . . Record 1 | . . . . . . 1 . . . . . . Part Schematic 3 | . . . . . 1 1 . . 1 . . . Prototype ID Bank 8 | . 2 . . 1 1 2 . . . 2 . . Branch Access Points 1 | . 1 . . . . . . . . . . . Terminal Index 4 | . 1 . . . . 1 . . 1 1 . . Unreport Threat 8 | . 3 1 . 1 . 2 . . 1 . . . Investigation Status 1 | . . . . . . 1 . . . . . . Fabricator Hacks 4 | . . . . . 3 1 . . . . . . Network Status 2 | . . . . . 1 1 . . . . . . Load Schematic 1 | . . . . . 1 . . . . . . . Build 1 | . . . . . 1 . . . . . . . Repair Station Hacks 18 | . . 4 . 8 5 . . . . . . 1 Scan Component 10 | . . 2 . 4 3 . . . . . . 1 Repair 8 | . . 2 . 4 2 . . . . . . . Recycling Unit Hacks . | . . . . . . . . . . . . . Scanalyzer 12 | . . . . 2 . 1 . . 9 . . . Insert Component 7 | . . . . 1 . 1 . . 5 . . . Analyze 5 | . . . . 1 . . . . 4 . . . Garrison Access Hacks 3 | . . . . . 1 . . . 1 1 . . Unlock Access 1 | . . . . . . . . . . 1 . . Seal Access 2 | . . . . . 1 . . . 1 . . . Unauthorized Hacks 37 | . 8 7 . 3 5 7 . . 2 5 . . Terminals 35 | . 8 7 . 3 4 6 . . 2 5 . . Track 2 | . 1 1 . . . . . . . . . . Assimilate 1 | . . 1 . . . . . . . . . . Botnet 31 | . 7 4 . 3 4 6 . . 2 5 . . Operators 1 | . . 1 . . . . . . . . . . Fabricators 1 | . . . . . 1 . . . . . . . Download 1 | . . . . . 1 . . . . . . . Repair Stations . | . . . . . . . . . . . . . Recycling Units . | . . . . . . . . . . . . . Scanalyzers . | . . . . . . . . . . . . . Garrison Access 1 | . . . . . . 1 . . . . . . Jam 1 | . . . . . . 1 . . . . . . Data Cores Recovered 2 | . . . . . 1 . . . . . . 1 Used . | . . . . . . . . . . . . . Hacking Detections 47 | . 6 6 . 3 10 9 . . 3 6 2 2 Full Trace Events 4 | . . . . . 2 1 . . . 1 . . Feedback Events . | . . . . . . . . . . . . . Feedback Blocked . | . . . . . . . . . . . . . Robot Schematics Acquired . | . . . . . . . . . . . . . Robots Built . | . . . . . . . . . . . . . Authchips . | . . . . . . . . . . . . . Time . | . . . . . . . . . . . . . Total Robot Build Rating . | . . . . . . . . . . . . . Part Schematics Acquired 7 | . . . . 1 1 1 . . 4 . . . Parts Built . | . . . . . . . . . . . . . Authchips . | . . . . . . . . . . . . . Time 73 | . . . . . 73 . . . . . . . Total Part Build Rating . | . . . . . . . . . . . . . Parts Repaired 8 | . . 2 . 4 2 . . . . . . . Time 257 | . . 64 . 152 41 . . . . . . . Parts Recycled . | . . . . . . . . . . . . . Recycled Matter . | . . . . . . . . . . . . . Retrieved Matter . | . . . . . . . . . . . . . Retrieved Components . | . . . . . . . . . . . . . Parts Scanalyzed 4 | . . . . 1 . . . . 3 . . . Part Schematics Acquired 4 | . . . . 1 . . . . 3 . . . Parts Damaged . | . . . . . . . . . . . . . Bothacking | -11 -10 -9 -9 -8 -7 -6 -6 -6 -5 -4 -4 -4 ------------ Run | Yrd Mat Mat Min Mat Fac Fac Low Low Fac Fac Gar Fac Used RIF Installer 1 | . . . . . . . . . . . 1 . Robots Hacked 1 | . . . . 1 . . . . . . . . Non-combat 1 | . . . . 1 . . . . . . . . Combat . | . . . . . . . . . . . . . Robot Hacks Applied 1 | . . . . 1 . . . . . . . . parse_system 1 | . . . . 1 . . . . . . . . Relay Couplers Released 10 | . . . . . . . . . . . 10 . Machine Destruction 10 | . . . . . . . . . . . 10 . Fabnet Peak Effective % . | . . . . . . . . . . . . . Robots Rewired 10 | . . . . . . . . . . . 10 . Allies Hacked . | . . . . . . . . . . . . . Hacks Repelled . | . . . . . . . . . . . . . Allies | -11 -10 -9 -9 -8 -7 -6 -6 -6 -5 -4 -4 -4 -------- Run | Yrd Mat Mat Min Mat Fac Fac Low Low Fac Fac Gar Fac Total Allies 10 | . . . . . . . . . . . 10 . Largest Group 6 | . . . . . . . . . . . 6 6 Highest-Rated Group 316 | . . . . . . . . . . . 316 316 Highest-Rated Ally 85 | . . . . . . . . . . . 85 56 Total Orders . | . . . . . . . . . . . . . Ally Attacks 104 | . . . . . . . . . . . 39 65 Total Damage 3627 | . . . . . . . . . . . 1730 1897 Kills 23 | . . . . . . . . . . . 11 12 Allies Corrupted . | . . . . . . . . . . . . . Allies Melted . | . . . . . . . . . . . . . Intel | -11 -10 -9 -9 -8 -7 -6 -6 -6 -5 -4 -4 -4 ------- Run | Yrd Mat Mat Min Mat Fac Fac Low Low Fac Fac Gar Fac Robot Analysis Total . | . . . . . . . . . . . . . Derelict Logs Recovered . | . . . . . . . . . . . . . Drone Launches . | . . . . . . . . . . . . . Drone Recoveries . | . . . . . . . . . . . . . Exploration | -11 -10 -9 -9 -8 -7 -6 -6 -6 -5 -4 -4 -4 ------------- Run | Yrd Mat Mat Min Mat Fac Fac Low Low Fac Fac Gar Fac Turns Passed 20987 | 42 1540 2184 799 1623 4329 4112 1736 316 417 740 2581 568 Spaces Moved 7839 | 30 682 524 224 526 1643 1804 362 68 225 404 1106 241 Core 6 | 6 . . . . . . . . . . . . Treads 1451 | . . . . 31 1388 . . . . . 32 . Legs 3847 | 24 682 524 110 . . 1367 362 68 11 . 458 241 Wheels 2535 | . . . 114 495 255 437 . . 214 404 616 . Hover . | . . . . . . . . . . . . . Flight . | . . . . . . . . . . . . . Fastest Speed 50 | 50 120 190 210 195 130 130 195 470 160 110 110 111 Average Speed 217 | 107 196 338 305 215 224 177 451 470 178 137 170 164 Slowest Speed 610 | 120 260 400 470 312 410 610 470 470 540 160 245 190 Overloaded Moves . | . . . . . . . . . . . . . Propulsion Burnouts . | . . . . . . . . . . . . . Robots Hopped . | . . . . . . . . . . . . . Cave-ins Triggered . | . . . . . . . . . . . . . Exploration Rate (%) 40 | 3 84 63 50 47 49 40 63 17 5 11 82 7 Regions Visited 12 Branch Regions 3 Pre-discovered Areas . | . . . . . . . . . . . . . Known Exits Taken 1 | . . . . . . . . . . 1 . . Unknown Exits Taken 10 | 1 1 1 1 1 1 1 1 1 1 . . . Scrap Searched 2 | . . . 1 . . . . 1 . . . . Spaces Dug 34 | . . 1 . 3 3 6 . . . 3 1 17 Terrain Destroyed 330 | . . 1 . 46 56 79 55 . . 16 11 66 Melee 6 | . . . . 3 3 . . . . . . . Projectile 116 | . . 1 . . 21 55 3 . . 16 11 9 AOE 208 | . . . . 43 32 24 52 . . . . 57 Terrain Rammed . | . . . . . . . . . . . . . Walls Destroyed . | . . . . . . . . . . . . . Machines Disabled . | . . . . . . . . . . . . . Actions | -11 -10 -9 -9 -8 -7 -6 -6 -6 -5 -4 -4 -4 --------- Run | Yrd Mat Mat Min Mat Fac Fac Low Low Fac Fac Gar Fac Total 10266 | 37 778 744 276 901 2055 2316 425 68 242 539 1516 369 Wait 611 | . 6 64 . 172 151 54 19 . 4 79 39 23 Move 7828 | 29 681 523 223 525 1642 1803 361 67 224 404 1105 241 Hop . | . . . . . . . . . . . . . Pick Up 224 | 3 23 14 8 32 30 61 7 1 2 11 21 11 Fast Attach 56 | 5 1 4 1 5 3 19 1 . 1 3 12 1 Attach 84 | . 1 6 6 4 4 39 5 . 3 2 6 8 Detach . | . . . . . . . . . . . . . Swap 175 | . 6 18 2 16 28 36 3 . 2 9 30 25 Drop 230 | . 8 13 1 34 51 48 3 . 6 6 31 29 Fire 887 | . 52 98 35 67 127 256 26 . . 25 171 30 Melee 27 | . . 4 . 16 6 . . . . . . 1 Ram . | . . . . . . . . . . . . . Kick . | . . . . . . . . . . . . . Crush 1 | . . . . . 1 . . . . . . . Escape Stasis 53 | . . . . . 12 . . . . . 41 . Rewire 60 | . . . . . . . . . . . 60 . Trap 30 | . . . . 30 . . . . . . . . Miscellaneous . | . . . . . . . . . . . . . Route ------- -11/Scrapyard -10/Materials (discovered 3 exits: *Mat x2 / *Min) -9/Materials (discovered 2 exits: [*Min x2]) -9/Mines -8/Materials (discovered 2 exits: *Fac / [*Sto]) -7/Factory (discovered 4 exits: *Fac x3 / [*Low]) -6/Factory (discovered 2 exits: [*Low x2]) -6/Lower Caves -6/Lower Caves -5/Factory -4/Factory -4/Garrison (discovered 3 exits: *Fac x3) -4/Factory (discovered 1 exit: [*Upp]) History --------- Turn | Location | Event 5 | -11/Scrapyard | Discovered new exit (range 15) 43 | -11/Scrapyard | Entered Materials 134 | -10/Materials | Discovered new exit (range 8) 318 | -10/Materials | Build established: Mutant 502 | -10/Materials | Discovered new exit (range 15) 1107 | -10/Materials | Discovered new exit (range 9) 1111 | -10/Materials | Identified exit to Mines 1583 | -10/Materials | Entered another Materials area 1583 | -9/Materials | Evolved 2 slots: Utility x2 2117 | -9/Materials | Discovered new exit (range 18) 2146 | -9/Materials | Build established: Scavenger-Mutant 2224 | -9/Materials | Repaired Imp. Aluminum Leg 2353 | -9/Materials | Repaired Imp. Aluminum Leg 2860 | -9/Materials | Discovered new exit (range 18) 3375 | -9/Materials | Lost 4 parts (2n2u) 3716 | -9/Materials | Build established: Mutant 3767 | -9/Materials | Entered Mines 3772 | -9/Mines | Met a Derelict bent on vengeance 3774 | -9/Mines | Received a Rocket Launcher from a helpful Derelict 4006 | -9/Mines | Assembled infested the area 4135 | -9/Mines | Lost 3 parts (1p1n1u) 4207 | -9/Mines | Core integrity fell below 50% 4287 | -9/Mines | Found DCF Scrap (11 items) 4316 | -9/Mines | Build established: Scavenger-Mutant 4549 | -9/Mines | Discovered new exit (range 9) 4566 | -9/Mines | Entered Materials 4566 | -8/Materials | Evolved 2 slots: Utility x2 4645 | -8/Materials | Discovered new exit (range 16) 5160 | -8/Materials | Garrison activated, responded to threat 5271 | -8/Materials | Garrison activated, responded to threat 5551 | -8/Materials | Repaired Adv. Treads 5596 | -8/Materials | Repaired Gauss Rifle 5630 | -8/Materials | Repaired Maul 5669 | -8/Materials | Repaired Imp. Heat Sink 6133 | -8/Materials | Discovered new exit (range 5) 6189 | -8/Materials | Entered Factory 6189 | -7/Factory | Evolved 2 slots: Propulsion x2 6325 | -7/Factory | Build established: Mutant 6636 | -7/Factory | Build established: Scavenger-Mutant 7330 | -7/Factory | Build established: Mutant 8034 | -7/Factory | Garrison activated, responded to threat 9034 | -7/Factory | Discovered new exit (range 20) 9228 | -7/Factory | Discovered new exit (range 4) 9390 | -7/Factory | Discovered new exit (range 10) 9416 | -7/Factory | Repaired Adv. Treads 9903 | -7/Factory | Build established: Hacker-Mutant 10225 | -7/Factory | Repaired Rnf. Deuterium Engine 10463 | -7/Factory | Discovered new exit (range 11) 10518 | -7/Factory | Entered another Factory area 10518 | -6/Factory | Evolved 2 slots: Power x1, Propulsion x1 10562 | -6/Factory | Discovered new exit (range 5) 10568 | -6/Factory | Discovered new exit (range 5) 11032 | -6/Factory | Build established: Scavenger-Mutant 11343 | -6/Factory | Cargo convoy interrupted 11447 | -6/Factory | Lost 8 parts (2p2n3u1w) 11481 | -6/Factory | Spotted B-75 Beast 11575 | -6/Factory | Destroyed B-75 Beast 11598 | -6/Factory | Lost 9 parts (3p2n3u1w) 11691 | -6/Factory | Lost 3 parts (1p1n1w) 11718 | -6/Factory | Found Prototype Processor 11718 | -6/Factory | Identified Exp. Target Analyzer 12329 | -6/Factory | Garrison activated, responded to threat 12364 | -6/Factory | Core integrity fell below 50% 12420 | -6/Factory | Lost 13 parts (3p6n3u1w) 12422 | -6/Factory | Destroyed 9 combat bots 14295 | -6/Factory | Build established: Mutant 14520 | -6/Factory | Lost 6 parts (3n2u1w) 14523 | -6/Factory | Found Prototype Device 14630 | -6/Factory | Entered Lower Caves 14708 | -6/Lower Caves | Core integrity fell below 20% 14768 | -6/Lower Caves | Build established: Scavenger-Mutant 14777 | -6/Lower Caves | Lost 6 parts (1p3n2w) 16278 | -6/Lower Caves | System corruption reached 10% 16295 | -6/Lower Caves | Discovered new exit (range 15) 16366 | -6/Lower Caves | Entered another Lower Caves area 16466 | -6/Lower Caves | Encountered a Warlord checkpoint 16507 | -6/Lower Caves | Discovered new exit (range 16) 16682 | -6/Lower Caves | Entered Factory 16682 | -5/Factory | Evolved 2 slots: Propulsion x1, Utility x1 16829 | -5/Factory | Discovered new exit (range 10) 17017 | -5/Factory | Identified Active Sensor Suite 17099 | -5/Factory | Entered another Factory area 17099 | -4/Factory | Evolved 2 slots: Propulsion x1, Utility x1 17839 | -4/Factory | Identified exit to Garrison 17839 | -4/Factory | Entered Garrison 17845 | -4/Garrison | Spotted B-86 Titan 17895 | -4/Garrison | Destroyed B-86 Titan 17935 | -4/Garrison | Rewired B-75 Beast 17965 | -4/Garrison | Rewired B-75 Beast 18299 | -4/Garrison | Triggered checkpoint 18495 | -4/Garrison | Build established: Mutant 18509 | -4/Garrison | Triggered checkpoint 18522 | -4/Garrison | Triggered checkpoint 18627 | -4/Garrison | Triggered checkpoint 18706 | -4/Garrison | Lost 7 parts (1p1n4u1w) 18757 | -4/Garrison | Triggered checkpoint 18881 | -4/Garrison | Discovered new exit (range 11) 18987 | -4/Garrison | Triggered checkpoint 19083 | -4/Garrison | Garrison Relay disabled 19330 | -4/Garrison | Build established: Scavenger-Mutant 19394 | -4/Garrison | Discovered new exit (range 10) 19506 | -4/Garrison | Installed Relay Interface Framework 19611 | -4/Garrison | Triggered checkpoint 19673 | -4/Garrison | Garrison Relay disabled 19885 | -4/Garrison | Triggered checkpoint 20027 | -4/Garrison | Discovered new exit (range 12) 20085 | -4/Garrison | Garrison Relay disabled 20420 | -4/Garrison | Entered Factory 20420 | -4/Factory | Accompanied by 6 allies 20670 | -4/Factory | First assault squad dispatched 20815 | -4/Factory | Discovered new exit (range 8) 20841 | -4/Factory | Lost 3 allies 20961 | -4/Factory | Core integrity fell below 50% 20970 | -4/Factory | Core integrity fell below 20% 20988 | -4/Factory | Destroyed by X-77 Beamer with Gatling Laser Last Messages --------------- 20977_ Matter Neutralizer destroyed. 20977_ HV Slug penetrates G-67 Veteran. 20978_ Acquired 57 matter. 20979_ Enh. Armored Leg broken. 20979_ Overheating: Short circuit. 20979_ Myomer Leg destroyed. 20979_ Lgt. Antimatter Reactor destroyed. 20980_ Power failure, Rnf. Antimatter Reactor shutdown. 20980_ HV Slug penetrates G-67 Veteran. 20980_ HV Slug penetrates Wall. 20981_ Rnf. Antimatter Reactor destroyed. 20981_ Myomer Leg destroyed. 20983_ G-67 Veteran suffers critical hit (Destroy). 20986_ Penetrated by HV Slug. 20986_ HV Slug penetrates Wall. 20987_ Myomer Leg destroyed. 20987_ Knocked back. 20988_ Acquired 1 matter. Map ----- +----------------------------------------------------+ | ?????????????????????????????????????????????????? | | ?????????????????????????????????????????????????? | | ?????????????????????????????????????????????????? | | ?????????????????????????????????????????????????? | | ?????????????????????????????????????????????????? | | ?????????????????????????????????????????????????? | | ?????????????????????????????????????????????????? | | ?????????????????????????????????????????????????? | | ?????????????????????????????????????????????????? | | ?????????????????????????????????????????????????? | | ?????????????????????????????????????????????????? | | ??????????? ????????????##???????????????????????? | | ????????????+#########?? ???????????????????????? | | ??????????? ?? "??? #??????????????????? | | ???????????""" ?? """ ##?????????????????? | | ??????????? #? """ " ???????"?????????? | | ??????????"""" ## #???????"""?? ?????? | | ???????????? ## """ !#????? """ ?????? | | ?????????????? ## " #???? ????? | | ???????????????? %|##[%"" ?#?? ?????? | | ?????????????????? ==#!!=%?? #? ????????? | | ????????########??###H%|####+## m ??????????? | | ####????# ######u=hg!x%%%% ##????????????? | | + """ + !%=w=|%|%%= " ?????????? | | #???????# """ ######*%! =g%% #??????????????? | | ????????# """ #??#######@;#+######??????????????? | | ????????# #???#### % ??????????????????? | | ????????# #?? ! # % #??????????????? | | ??????#####+##+# # #??????????????? | | + """ # #??????????????? | | ??????######## # """ # !#??????????????? | | ?????????????# #??"" # #??????????????? | | ?????????????# #???? # u #??????????????? | | ?????????????# #???################??????????????? | | ?????????????# #???# #????????????????? | | ?????????????# #???# #????????????????? | | ?????????????# #??## [ #????????????????? | | ?????????????#!####" = #????????????????? | | ???????????###!%[[=# %* #????????????????? | | ???????????# # %[=%# #????????????????? | | ???????????### * %/[ #????????????????? | | ?????????????# # #????????????????? | | ?????????????# # #????????????????? | | ?????????????# # #????????????????? | | ##+########### % # #????????????????? | | % # #????????????????? | | #" # # ##????????????????? | | " #??????????????????? | | =% ## # #???????????????? | | ! #? #???????????????? | +----------------------------------------------------+ Best States ------------- Heat Dissipation 105 Energy Generation 42 Energy Capacity 540 Matter Stores 300 Matter Capacity 300 Sight Range 22 Robot Scan Range 16 Terrain Scan Density 10 ECM Strength 2 Jamming Range 16 Power Amplification 20 Base Temperature (-) 200 Corruption Containment 8 Armor Coverage 450 Resistance: KI 20 Resistance: TH 45 Resistance: EX 45 Resistance: EM 45 Resistance: I 20 Resistance: S 20 Resistance: P 20 Core Shielding 30 Power Shielding 33 Propulsion Shielding 66 Weapon Shielding 33 Weapon Cycling 15 Phase Shifting 10 Evasion (%) 55 Targeting Accuracy 6 Target Analysis 10 Recoil Reduction 8 Offensive Hacking 20 Defensive Hacking 12 Item Schematics ----------------- Arm. Treads | -8/Materials | Scanalyzed Hvy. Plasma Cannon | -7/Factory | Hacked Imp. VSS Leg | -6/Factory | Hacked Arm. Huge Wheel | -5/Factory | Hacked Med. Reflective Plating | -5/Factory | Scanalyzed Transmission Jammer | -5/Factory | Scanalyzed Adv. Targeting Computer | -5/Factory | Scanalyzed Robot Schematics ------------------ None Fabricated ------------ Nothing Alien Tech Used ----------------- None Achievements -------------- None Challenges ------------ None Game ------ Seed AlloyCobblerPerforator Manual? 0 Play Time 02:13:10 Cumulative 155.6 hours Start 2024.10.10 @ 06:54:35 End 2024.10.10 @ 09:08:50 Sessions 1 Manual Loads 0 Difficulty Adventurer Special Mode None Game No. 203 Rogue 0 Adventurer 203 Explorer 0 Win Type - Total 0 Types 0/0/0/0/0/0/0/0/0 Lore% 57 Gallery% 53 Achievement% 42 Wizard Run 0 Options --------- Layout 2 ASCII 0 Keyboard 0 Movement Mouse Keybinds 0 Fullscreen 2 Font 48/Smallcaps Map View 50x44 Zoom Use 0% Tactical HUD 1 Map Filters NONE Filters NONE Steam 1 RUN: e29d0bdb-2e27-41c9-995b-b408996340e5